bitfinex/quotes_ETHUSD_20250822
["timestamp","ask_amount","ask_price","bid_price","bid_amount"]
[1755892477497,58.3721186,4851.4,4851.3,7.4002]
[1755892477699,58.3721186,4851.4,4851.3,3.7632]
[1755892477900,62.7344186,4851.4,4851.3,0.1032]
[1755892478110,62.7344186,4851.4,4850.6,3.637]
[1755892478111,62.0091186,4851.4,4850.6,3.637]
[1755892478290,62.2964186,4851.4,4850.9,0.1032]
[1755892478621,0.438,4851.3,4850.9,0.1032]
[1755892478824,0.438,4851.2,4850.9,0.1032]
[1755892478988,62.0091186,4851.4,4850.9,0.1032]
[1755892479186,62.4471186,4851.4,4850.9,0.1032]
[1755892479383,0.438,4851.3,4850.9,3.1032]
[1755892479584,62.0091186,4851.4,4850.9,3.1032]
[1755892479788,58.3721186,4851.4,4851.3,0.2887]
[1755892479985,58.3721186,4851.4,4851.3,4.0519]
[1755892480309,59.0974186,4851.4,4850.8,0.02]
[1755892480508,59.0974186,4851.4,4851.0,0.1032]
[1755892480710,59.0974186,4851.4,4850.8,0.1232]
[1755892480711,0.438,4851.3,4850.8,0.1232]
[1755892480924,0.2873,4850.9,4850.8,0.1232]
[1755892481087,0.2873,4850.9,4850.8,0.2092574]
[1755892481289,0.7253,4850.9,4850.8,0.2092574]
[1755892481502,4.3613,4850.9,4850.8,0.2092574]
[1755892481927,4.79743,4850.9,4850.8,0.2092574]
[1755892482602,1.716,4851.2,4850.8,0.2092574]
[1755892482803,58.3721186,4851.4,4850.9,3.8492574]
[1755892483032,58.3721186,4851.4,4851.3,0.9487]
[1755892483193,58.3721186,4851.4,4851.3,1.1379574]
[1755892483399,58.3721186,4851.4,4851.3,0.9487]
[1755892483727,58.3721186,4851.4,4851.3,20.83251057]
[1755892483896,58.3721186,4851.4,4851.3,23.43028857]
[1755892484302,48.75543128,4851.4,4851.3,25.14628857]
[1755892484626,48.75543128,4851.4,4851.3,11.441578]
[1755892484796,48.75543128,4851.4,4851.3,7.806578]
[1755892485002,48.75543128,4851.4,4851.3,11.441578]
[1755892485305,48.75543128,4851.4,4851.3,11.897478]
[1755892485918,48.75543128,4851.4,4851.3,7.806578]
[1755892486100,48.75543128,4851.4,4851.3,3.0]
[1755892486500,48.75543128,4851.4,4851.3,3.66]
[1755892486701,48.75543128,4851.4,4851.3,7.295]
[1755892487132,49.48073128,4851.4,4851.3,7.295]
[1755892487302,48.75543128,4851.4,4851.3,7.295]
[1755892487620,48.75543128,4851.4,4851.3,7.2858]
[1755892488399,48.75543128,4851.4,4851.3,7.2848]
[1755892488634,49.49873128,4851.4,4851.3,2.9908]
[1755892489004,49.49873128,4851.4,4850.8,0.66]
[1755892489805,48.75543128,4851.4,4850.9,0.02061473]
[1755892489999,52.38943128,4851.4,4851.0,0.66]
[1755892490199,48.75543128,4851.4,4851.0,0.66]
[1755892490435,0.3157,4851.1,4850.0,0.001]
[1755892490635,3.634,4851.0,4850.0,0.001]
[1755892490829,4.0616,4851.0,4850.0,0.001]
[1755892491132,0.3157,4850.1,4850.0,0.001]
[1755892491332,5.6647,4850.1,4848.8,0.02]
[1755892491532,0.4276,4850.0,4848.8,0.02]
[1755892491714,0.3157,4848.9,4848.8,0.02]
[1755892492036,5.6647,4848.9,4848.8,0.02]
[1755892492210,6.0923,4848.9,4848.8,0.02]
[1755892492708,6.1955,4848.9,4848.8,0.02]
[1755892492914,5.6647,4848.9,4848.8,0.02]
[1755892493132,0.4276,4849.3,4848.8,0.02]
[1755892493133,0.1032,4849.3,4848.8,0.02]
[1755892493319,4.0606,4849.2,4848.8,0.1232]
[1755892493633,3.633,4849.1,4848.8,0.1232]
[1755892494333,0.4276,4849.1,4848.8,0.1232]
[1755892494520,0.3157,4848.9,4848.8,0.7832]
[1755892494710,4.3773,4848.9,4848.8,0.02]
[1755892495717,3.634,4848.9,4848.8,0.02]
[1755892496109,3.634,4848.9,4848.8,0.1232]
[1755892496415,3.634,4848.9,4848.8,0.02]
[1755892496416,3.9497,4848.9,4848.8,0.02]
[1755892496613,3.634,4848.9,4848.8,0.02]
[1755892496937,3.9497,4848.9,4848.8,0.02]
[1755892497140,4.3773,4848.9,4848.8,0.02]
[1755892498235,4.3773,4848.9,4848.8,0.01854645]
[1755892498827,4.82535,4848.9,4848.8,0.01854645]
[1755892499146,4.92855,4848.9,4848.8,0.01854645]
[1755892499313,4.92855,4848.9,4848.8,0.04914645]
[1755892499917,4.4805,4848.9,4848.8,0.04914645]
[1755892500739,4.4805,4848.9,4847.3,0.001]
[1755892500928,0.4276,4848.8,4847.3,0.001]
[1755892501132,0.4189,4847.9,4847.3,0.001]
[1755892501314,4.0519,4847.9,4847.3,0.001]
[1755892501838,3.7362,4847.9,4847.3,0.001]
[1755892502046,0.1032,4847.9,4847.3,0.001]
[1755892502208,4.0606,4848.2,4847.6,0.1032]
[1755892502416,3.633,4848.2,4847.7,0.66]
[1755892502608,3.633,4848.2,4847.3,0.001]
[1755892502609,3.633,4848.6,4848.2,0.66]
[1755892502821,3.633,4848.7,4848.4,0.1032]
[1755892503240,3.633,4848.7,4848.5,0.66]
[1755892503416,3.634,4849.0,4848.5,0.66]
[1755892503613,3.633,4849.0,4848.5,0.66]
[1755892503821,3.633,4849.9,4849.0,3.66]
[1755892504138,3.633,4849.8,4849.3,0.1032]
[1755892504358,0.3157,4849.4,4848.5,0.66]
[1755892504655,3.633,4849.3,4848.9,0.1032]
[1755892504858,3.633,4849.3,4848.0,0.4617]
[1755892504859,0.3157,4849.0,4846.8,0.021]
[1755892505159,0.1032,4847.9,4847.2,0.1032]
[1755892505332,3.633,4848.0,4847.6,0.1032]
[1755892505537,3.633,4848.1,4847.6,0.1032]
[1755892506123,3.633,4848.1,4847.9,0.66]
[1755892506429,0.5308,4848.9,4848.0,0.1032]
[1755892506627,0.1032,4848.3,4847.6,0.1032]
[1755892506828,3.7362,4848.3,4847.6,0.1032]
[1755892507260,4.1638,4848.3,4847.6,0.1032]
[1755892507756,3.7362,4848.3,4847.6,0.1032]
[1755892508446,3.7362,4849.0,4848.2,0.7632]
[1755892508753,3.7362,4849.0,4848.2,1.17812695]
[1755892509460,3.7362,4849.0,4848.2,4.17812695]
[1755892509756,0.002,4849.4,4848.9,1.0548]
[1755892509957,0.002,4849.4,4849.2,0.1032]
[1755892510332,0.002,4849.4,4849.3,1.43392153]
[1755892510561,0.002,4849.4,4849.3,1.88763368]
[1755892510865,0.002,4849.4,4849.3,1.40531215]
[1755892511558,0.002,4849.4,4849.3,1.88763368]
[1755892512169,0.02,4849.8,4849.3,1.88763368]
[1755892512375,0.02,4849.8,4849.7,0.7632]
[1755892512673,0.02,4849.8,4849.7,6.21729783]
[1755892512999,0.02,4849.8,4849.7,6.658378]
[1755892514763,0.02,4849.8,4849.7,10.290378]
[1755892514969,0.02,4849.8,4849.7,6.658378]
[1755892515168,0.02,4849.8,4849.7,10.290378]
[1755892515868,0.02,4849.8,4849.7,6.658378]
[1755892516075,0.02,4849.8,4849.7,6.196678]
[1755892516263,0.02,4849.8,4849.7,3.1032]
[1755892517078,0.02,4849.8,4849.7,3.3948]
[1755892517239,0.02,4849.8,4849.7,20.27861057]
[1755892517433,0.02,4849.8,4849.7,20.93861057]
[1755892517734,0.02,4849.8,4849.7,23.08048857]
[1755892518240,0.02,4849.8,4849.7,27.15578857]
[1755892518840,48.75543128,4851.4,4849.7,27.15578857]
[1755892518841,48.75543128,4851.4,4849.8,3.66]
[1755892519036,48.75543128,4851.4,4850.5,3.66]
[1755892519282,48.75543128,4851.4,4851.2,0.1032]
[1755892519488,48.75543128,4851.4,4851.3,0.66]
[1755892520398,48.75543128,4851.4,4851.3,6.53359176]
[1755892520573,48.75543128,4851.4,4851.3,6.63679176]
[1755892520984,48.75543128,4851.4,4851.3,10.26679176]
[1755892522309,48.75543128,4851.4,4851.3,3.7632]
[1755892523817,48.75543128,4851.4,4851.3,7.3932]
[1755892524123,49.50053128,4851.4,4851.3,3.1032]
[1755892524619,49.50053128,4851.4,4851.3,0.1032]
[1755892525597,48.75543128,4851.4,4851.3,7.6874]
[1755892525898,48.75543128,4851.4,4851.3,9.829278]
[1755892526521,48.75543128,4851.4,4851.3,7.3922]
[1755892527134,48.75543128,4851.4,4851.3,3.7632]
[1755892527304,48.75543128,4851.4,4851.3,7.3922]
[1755892527993,48.75543128,4851.4,4851.3,3.7632]
[1755892528329,48.75543128,4851.4,4851.3,7.3922]
[1755892530424,48.75543128,4851.4,4851.3,8.30312]
[1755892530612,49.50053128,4851.4,4851.3,0.1032]
[1755892530802,49.50053128,4851.4,4851.1,0.1032]
[1755892531003,49.50053128,4851.4,4850.3,1.716]
[1755892531004,0.4404,4851.3,4850.8,3.0]
[1755892531219,0.4404,4851.2,4850.9,0.1032]
[1755892531432,0.3047,4851.0,4850.9,0.1032]
[1755892531798,0.7451,4851.0,4850.9,0.1032]
[1755892532714,2.886978,4851.0,4850.9,0.1032]
[1755892532899,2.886978,4851.0,4849.8,3.628]
[1755892533096,4.1716,4850.9,4850.3,0.1032]
[1755892533430,0.3047,4850.4,4850.3,0.1032]
[1755892533896,0.7451,4850.4,4849.7,0.0806]
[1755892534098,0.1032,4850.1,4849.7,0.0806]
[1755892534295,0.87771,4850.3,4849.3,0.001]
[1755892534296,0.4079,4849.8,4849.3,0.001]
[1755892534512,0.1032,4849.4,4849.3,0.001]
[1755892534805,4.0349,4849.4,4849.3,0.001]
[1755892535025,4.4753,4849.4,4849.3,0.001]
[1755892535219,4.92283,4849.4,4849.3,0.001]
[1755892535437,0.3047,4849.4,4849.3,0.001]
[1755892535644,0.7451,4849.4,4849.3,0.001]
[1755892536200,0.1032,4849.5,4849.3,0.001]
[1755892536402,0.7451,4849.4,4849.3,0.001]
[1755892538304,3.627,4849.4,4849.3,0.001]
[1755892538709,3.627,4849.7,4849.3,0.001]
[1755892538941,3.627,4849.7,4849.6,0.66]
[1755892539140,3.627,4850.0,4849.6,0.66]
[1755892539433,0.1032,4850.2,4849.6,0.66]
[1755892539635,3.628,4850.3,4849.9,0.7632]
[1755892539809,3.628,4850.3,4850.2,0.1032]
[1755892540011,3.628,4850.3,4850.2,0.7632]
[1755892540606,3.627,4850.5,4850.3,0.66]
[1755892540807,0.7451,4850.4,4849.5,0.66]
[1755892541009,0.7451,4850.4,4849.9,0.1032]
[1755892541229,0.7451,4850.4,4850.2,0.0213]
[1755892541437,0.4404,4851.1,4850.2,0.6813]
[1755892541747,4.04674737,4850.8,4850.5,0.1032]
[1755892542166,0.41974737,4850.8,4850.7,20.54381057]
[1755892542461,0.41974737,4850.8,4850.7,20.64701057]
[1755892542877,0.41974737,4850.8,4850.7,20.94221057]
[1755892543030,0.41974737,4850.8,4850.7,23.08408857]
[1755892544169,48.75543128,4851.4,4850.8,3.66]
[1755892544332,48.75543128,4851.4,4851.3,0.2952]
[1755892544532,48.75543128,4851.4,4851.3,0.3984]
[1755892545233,48.75543128,4851.4,4851.3,1.0584]
[1755892545473,48.75543128,4851.4,4851.3,1.96412925]
[1755892545977,48.75543128,4851.4,4851.3,8.1297]
[1755892546581,48.75543128,4851.4,4851.3,3.7632]
[1755892547272,48.75543128,4851.4,4851.3,7.3902]
[1755892547482,48.75543128,4851.4,4851.3,3.7632]
[1755892547930,49.06013128,4851.4,4851.3,3.7632]
[1755892549340,48.75543128,4851.4,4851.3,21.32403057]
[1755892549668,48.75543128,4851.4,4851.3,21.02333057]
[1755892550266,49.51203128,4851.4,4851.3,3.7632]
[1755892550570,52.68083128,4851.4,4851.3,3.7632]
[1755892550760,52.38143128,4851.4,4851.3,3.7632]
[1755892550948,48.75543128,4851.4,4851.3,3.7632]
[1755892551558,48.75543128,4851.4,4851.3,4.0639]
[1755892551752,48.75543128,4851.4,4851.3,3.7632]
[1755892552263,49.05483128,4851.4,4851.3,3.7632]
[1755892552461,48.75543128,4851.4,4851.3,3.7632]
[1755892556065,48.75543128,4851.4,4851.3,7.3882]
[1755892557074,48.75543128,4851.4,4851.3,9.830778]
[1755892558873,48.75543128,4851.4,4851.3,6.205778]
[1755892559081,48.75543128,4851.4,4851.3,9.829778]
[1755892559257,48.75543128,4851.4,4851.3,6.205778]
[1755892559775,48.75543128,4851.4,4851.3,9.829778]
[1755892560474,48.75543128,4851.4,4851.3,9.529078]
[1755892560643,48.75543128,4851.4,4851.3,7.3872]
[1755892560846,49.05483128,4851.4,4851.3,3.1032]
[1755892561044,49.51203128,4851.4,4851.3,3.1032]
[1755892561587,49.51203128,4851.4,4851.3,3.7845]
[1755892561876,49.51203128,4851.4,4851.3,3.0213]
[1755892562396,53.13603128,4851.4,4851.3,3.0213]
[1755892563062,55.27790928,4851.4,4851.3,0.0213]
[1755892564482,53.13603128,4851.4,4851.3,0.0213]
[1755892569650,49.51203128,4851.4,4851.3,0.0213]
[1755892569880,53.23723128,4851.4,4851.3,0.0213]
[1755892570083,52.37743128,4851.4,4851.3,0.0213]
[1755892570448,52.67683128,4851.4,4851.3,0.0213]
[1755892571188,52.37743128,4851.4,4851.3,0.0213]
[1755892571865,48.75543128,4851.4,4851.3,20.86581057]
[1755892573879,48.75543128,4851.4,4851.3,23.47818857]
[1755892574190,48.75543128,4851.4,4851.3,23.58138857]
[1755892575280,48.75543128,4851.4,4851.3,28.66543223]
[1755892575861,48.75543128,4851.4,4851.3,24.57393223]
[1755892576085,48.75543128,4851.4,4851.3,28.19493223]
[1755892576279,48.75543128,4851.4,4851.3,28.66543223]
[1755892576664,39.13874396,4851.4,4851.3,27.20238857]
[1755892577266,39.13874396,4851.4,4851.3,26.22038857]
[1755892577460,29.52205664,4851.4,4851.3,26.52108857]
[1755892577790,24.45350656,4851.4,4851.3,29.50665418]
[1755892578096,24.45350656,4851.4,4851.3,27.65788857]
[1755892578294,24.45350656,4851.4,4851.3,29.47597603]
[1755892578490,14.83681924,4851.4,4851.3,29.47597603]
[1755892579280,0.04953826,4854.1,4853.0,1.24]
[1755892579493,0.04953826,4854.1,4853.7,0.9729]
[1755892579696,0.04953826,4854.1,4853.7,7.5929]
[1755892579894,0.04953826,4854.1,4853.7,7.28]
[1755892580091,0.768,4853.8,4853.7,0.66]
[1755892580694,0.02,4853.8,4853.7,0.66]
[1755892580895,0.02,4853.8,4853.7,0.68060283]
[1755892581088,0.02,4853.8,4853.7,4.30060283]
[1755892581289,0.022,4853.8,4853.7,4.48970346]
[1755892581615,4.39,4853.8,4853.7,0.18910063]
[1755892581776,4.83435983,4853.8,4853.7,0.18910063]
[1755892582279,1.21435983,4853.8,4853.7,0.18903267]
[1755892582477,0.022,4853.8,4853.7,0.22933267]
[1755892582684,0.77,4853.8,4853.7,0.22933267]
[1755892584588,0.022,4853.8,4853.7,0.22933267]
[1755892584921,0.022,4853.8,4853.7,0.88933267]
[1755892585219,0.022,4853.8,4853.7,7.50833267]
[1755892585388,0.77,4853.8,4853.7,0.22933267]
[1755892585790,0.022,4853.8,4853.7,0.22933267]
[1755892587021,0.3183,4853.8,4853.7,0.22933267]
[1755892587195,0.77,4853.8,4853.7,0.22933267]
[1755892587630,0.77,4853.8,4853.7,0.33253267]
[1755892587997,0.77,4853.8,4853.7,0.22933267]
[1755892588196,1.21415983,4853.8,4853.7,0.22933267]
[1755892591127,1.21415983,4853.8,4853.7,0.0403]
[1755892591334,1.21415983,4853.8,4853.7,0.22893098]
[1755892591700,1.21415983,4853.8,4853.7,0.22893448]
[1755892591895,1.21415983,4853.8,4853.7,0.22893346]
[1755892592111,1.21415983,4853.8,4851.8,0.02]
[1755892592402,4.20679581,4853.7,4851.8,0.02]
[1755892592802,0.1032,4853.0,4852.3,0.1032]
[1755892593029,0.2963,4852.4,4851.8,0.02]
[1755892593203,0.1032,4851.9,4851.8,0.02]
[1755892593413,0.3995,4851.9,4851.8,0.02]
[1755892593602,0.3995,4851.9,4850.3,0.001]
[1755892593603,1.19482,4851.9,4850.3,0.001]
[1755892594028,0.4517,4851.8,4850.3,0.001]
[1755892594342,3.617,4851.7,4850.3,0.001]
[1755892594547,4.0687,4851.8,4850.3,0.001]
[1755892595146,4.0687,4851.8,4850.4,0.66]
[1755892595442,3.617,4851.8,4851.0,0.66]
[1755892595657,3.617,4851.8,4851.1,0.02061388]
[1755892595815,1.716,4852.4,4851.1,0.02061388]
[1755892596016,3.617,4852.5,4851.3,0.66]
[1755892596428,3.617,4852.5,4851.4,0.0206126]
[1755892596716,3.617,4852.5,4851.3,0.66]
[1755892596918,3.617,4852.5,4851.4,0.0206126]
[1755892597135,0.4517,4853.0,4851.4,0.0206126]
[1755892597344,1.716,4853.1,4851.4,0.0206126]
[1755892597545,3.618,4853.2,4851.5,5.73054422]
[1755892597848,3.618,4853.2,4851.7,3.66]
[1755892598051,1.738,4853.8,4853.1,0.0165]
[1755892598052,3.617,4853.7,4853.1,0.0165]
[1755892598252,0.022,4853.8,4853.1,0.0165]
[1755892598932,0.4517,4853.7,4852.7,0.66]
[1755892599128,0.4517,4853.7,4852.7,3.66]
[1755892599461,0.4517,4853.7,4852.7,0.66]
[1755892599750,0.4517,4853.7,4852.8,0.02060666]
[1755892599955,0.022,4853.8,4852.8,0.02060666]
[1755892600561,0.022,4853.8,4852.9,0.66]
[1755892600860,0.022,4853.8,4852.8,0.1767655]
[1755892600861,0.022,4853.8,4853.7,0.0256]
[1755892601450,0.022,4853.8,4853.4,0.66]
[1755892601622,0.022,4853.8,4853.7,0.66]
[1755892602254,0.022,4853.8,4853.7,0.76365824]
[1755892602751,0.022,4853.8,4853.7,0.78735824]
[1755892603529,0.022,4853.8,4853.7,0.89055824]
[1755892603735,0.022,4853.8,4853.7,0.7869]
[1755892606528,0.77,4853.8,4853.7,0.0237]
[1755892610553,1.05562472,4853.8,4853.7,0.0237]
[1755892615934,0.7734,4853.8,4853.7,0.0237]
[1755892618891,29.7774,4853.8,4853.7,0.0237]
[1755892619755,0.8766,4853.8,4853.7,0.0237]
[1755892621265,0.8766,4853.8,4853.0,0.001]
[1755892621561,0.1032,4853.1,4853.0,0.001]
[1755892621908,6.10201176,4853.1,4853.0,0.001]
[1755892622053,7.16151294,4853.1,4853.0,0.001]
[1755892622796,36.16551294,4853.1,4853.0,0.001]
[1755892623001,36.16551294,4853.1,4852.0,0.001]
[1755892623223,36.16551294,4853.1,4850.8,0.021]
[1755892623224,0.1032,4852.1,4850.8,0.021]
[1755892623401,0.1032,4850.9,4850.8,0.021]
[1755892623551,4.0193,4850.9,4850.8,0.021]
[1755892623957,4.4686,4850.9,4850.8,0.021]
[1755892625258,1.8192,4851.2,4850.8,0.0877]
[1755892625458,3.613,4851.1,4850.8,0.1269]
[1755892625862,4.0623,4851.1,4850.8,0.0602]
[1755892626059,0.3021,4850.9,4850.8,0.0602]
[1755892626482,0.7514,4850.9,4850.3,0.001]
[1755892626676,0.66,4850.8,4849.3,0.001]
[1755892626891,0.3021,4849.9,4849.3,0.001]
[1755892627205,5.6321,4849.9,4849.3,0.001]
[1755892627359,6.64461,4849.9,4849.3,0.001]
[1755892627899,35.64861,4849.9,4849.3,0.001]
[1755892628106,29.004,4849.9,4849.3,0.001]
[1755892628325,29.004,4849.9,4849.8,0.132]
[1755892628615,32.617,4849.9,4849.8,0.021]
[1755892628810,3.613,4849.9,4849.8,0.021]
[1755892629279,4.3644,4849.9,4849.8,0.021]
[1755892629498,4.97244,4849.9,4849.8,0.021]
[1755892632782,4.22104,4849.9,4849.8,0.021]
[1755892633008,3.613,4849.9,4849.8,0.021]
[1755892633421,3.613,4849.9,4849.8,0.152]
[1755892633587,1.716,4850.1,4849.8,0.152]
[1755892633784,3.614,4850.2,4849.9,0.02061898]
[1755892633999,1.717,4850.9,4849.9,0.02061898]
[1755892634000,3.614,4850.3,4849.9,0.02061898]
[1755892634317,3.614,4850.3,4850.1,0.131]
[1755892634821,3.614,4850.3,4850.1,0.2129]
[1755892634968,3.614,4850.3,4850.2,0.0819]
[1755892635318,3.614,4850.3,4850.2,0.131]
[1755892636073,3.614,4850.7,4850.3,0.66]
[1755892636278,3.614,4850.7,4850.6,0.131]
[1755892636496,3.614,4850.7,4850.3,0.66]
[1755892636497,3.614,4850.7,4850.4,0.1032]
[1755892636871,0.1032,4851.1,4850.6,0.791]
[1755892637216,3.614,4851.1,4851.0,0.1032]
[1755892637719,3.614,4851.1,4851.0,0.2342]
[1755892638618,3.614,4851.1,4851.0,0.1032]
[1755892638791,3.614,4851.1,4850.0,0.66]
[1755892638792,4.3517,4851.1,4850.0,0.66]
[1755892638976,4.4549,4851.1,4850.4,0.1032]
[1755892639174,4.79719,4851.1,4849.8,3.021]
[1755892639488,0.1032,4850.8,4850.1,0.1032]
[1755892639691,3.614,4850.7,4850.1,0.1032]
[1755892641791,3.614,4850.7,4849.8,3.021]
[1755892641991,3.614,4850.7,4849.9,0.1032]
[1755892642309,0.391,4850.0,4849.8,0.021]
[1755892642517,4.004,4850.0,4849.8,0.021]
[1755892642820,0.4499,4849.9,4849.8,0.021]
[1755892643020,0.7377,4849.9,4849.8,0.021]
[1755892643411,0.8409,4849.9,4849.8,0.021]
[1755892643636,0.7377,4849.9,4849.8,0.021]
[1755892643842,0.8409,4849.9,4849.8,0.021]
[1755892645031,3.613,4849.9,4849.8,0.152]
[1755892645342,3.613,4850.2,4849.8,0.152]
[1755892645528,29.004,4850.3,4849.9,0.68061898]
[1755892645729,29.004,4850.3,4850.2,0.8942]
[1755892645940,0.002,4850.8,4850.3,0.66]
[1755892646140,0.002,4850.8,4850.7,0.131]
[1755892646348,0.002,4850.8,4850.7,0.2342]
[1755892646545,0.002,4850.8,4850.7,0.1032]
[1755892646873,1.1012,4850.8,4850.7,0.1032]
[1755892647059,1.2044,4850.8,4849.9,0.0215]
[1755892647338,0.1032,4850.2,4849.9,0.0215]
[1755892647537,3.613,4850.1,4849.9,0.0215]
[1755892647908,0.7377,4850.0,4849.9,0.0215]
[1755892648727,3.613,4850.1,4849.9,0.0215]
[1755892649166,0.7377,4850.0,4849.9,0.0215]
[1755892651163,0.7377,4850.0,4849.8,0.021]
[1755892651333,0.5531,4849.9,4849.7,0.001]
[1755892651533,3.8998,4849.8,4849.7,0.001]
[1755892651856,32.9038,4849.8,4849.7,0.001]
[1755892652158,35.495578,4849.8,4849.7,0.001]
[1755892653730,6.491578,4849.8,4849.7,0.001]
[1755892655631,5.857078,4849.8,4849.7,0.001]
[1755892655833,3.7152,4849.8,4849.7,0.001]
[1755892656165,3.612,4849.8,4849.7,0.001]
[1755892657261,3.612,4849.8,4849.7,0.2]
[1755892657660,3.612,4849.8,4849.7,0.001]
[1755892657867,0.1032,4849.9,4849.7,0.2]
[1755892658061,0.022,4850.8,4849.8,19.48841057]
[1755892658252,0.022,4850.8,4850.7,17.74281057]
[1755892658459,29.006,4851.3,4850.8,0.66]
[1755892658768,29.006,4851.3,4851.2,0.199]
[1755892658769,0.002,4851.3,4851.2,0.199]
[1755892658987,0.002,4851.3,4851.2,0.3234]
[1755892659141,0.36671176,4853.1,4852.1,3.66]
[1755892659346,0.36671176,4853.1,4852.7,0.859]
[1755892659752,0.36671176,4853.1,4852.7,0.9834]
[1755892660074,0.36671176,4853.1,4852.7,20.86721057]
[1755892660474,0.36671176,4853.1,4852.7,3.859]
[1755892662374,0.36671176,4853.1,4852.7,3.9834]
[1755892663062,0.36671176,4853.1,4852.7,3.859]
[1755892664451,0.022,4852.8,4852.7,3.859]
[1755892667868,0.022,4852.8,4852.7,3.66]
[1755892668474,0.022,4852.8,4852.7,3.0215]
[1755892668783,0.022,4852.8,4852.7,0.0215]
[1755892669084,0.7628,4852.8,4852.7,0.0215]
[1755892669667,0.48,4853.9,4852.8,0.66]
[1755892670005,0.48,4853.9,4853.7,0.859]
[1755892670186,0.48,4853.9,4852.9,0.48]
[1755892670497,0.48,4853.9,4853.0,0.68060581]
[1755892670656,0.48,4853.9,4853.7,0.199]
[1755892670992,0.48,4853.9,4852.9,0.7844]
[1755892671186,0.48,4853.9,4853.2,0.66]
[1755892671386,0.48,4853.9,4853.7,0.859]
[1755892671884,0.48,4853.9,4853.4,0.66]
[1755892672387,0.48,4853.9,4853.7,0.199]
[1755892672590,0.48,4853.9,4853.5,3.662]
[1755892672886,0.48,4853.9,4852.9,0.02060623]
[1755892672887,0.4721,4853.8,4852.9,0.02060623]
[1755892673063,0.022,4853.8,4853.0,0.66]
[1755892673264,0.022,4853.8,4853.1,0.02060538]
[1755892673816,0.022,4853.8,4853.0,0.66]
[1755892674605,0.022,4853.8,4853.2,0.66]
[1755892675313,0.022,4853.8,4853.4,0.66]
[1755892676216,0.022,4853.8,4853.2,0.66]
[1755892676389,0.022,4853.8,4853.2,4.32]
[1755892676588,0.022,4853.8,4853.4,0.66]
[1755892677323,0.022,4853.8,4853.2,4.315]
[1755892677615,0.022,4853.8,4853.2,0.66]
[1755892677781,0.022,4853.8,4853.2,4.315]
[1755892678620,0.022,4853.8,4853.3,0.02060453]
[1755892679123,0.022,4853.8,4853.2,4.315]
[1755892679302,0.022,4853.8,4853.3,0.02060453]
[1755892679628,0.022,4853.8,4853.7,0.7632]
[1755892680528,0.022,4853.8,4853.7,4.508]
[1755892680731,0.48,4853.9,4853.8,0.66]
[1755892680948,0.48406,4854.0,4853.8,4.00400241]
[1755892681226,0.48406,4854.0,4853.9,4.312]
[1755892681401,0.48406,4854.0,4853.9,7.65600199]
[1755892681600,0.48406,4854.0,4853.9,8.8754]
[1755892682233,0.022,4854.8,4854.5,3.411]
[1755892682397,82.86080182,4854.6,4854.5,1.239]
[1755892682596,82.86080182,4854.6,4854.5,23.80604193]
[1755892682795,73.77971276,4854.6,4854.5,27.46704193]
[1755892683225,73.2441145,4854.6,4854.5,27.46704193]
[1755892683445,66.46252744,4854.6,4854.5,62.60799137]
[1755892683596,66.36280811,4854.6,4854.5,55.14816085]
[1755892683797,56.25606574,4854.6,4854.5,55.44036737]
[1755892684004,56.25606574,4854.6,4854.5,10.99556322]
[1755892684231,0.4501,4857.7,4854.5,10.99556322]
[1755892684232,9.21060364,4856.9,4856.4,0.08766754]
[1755892684417,7.10876479,4856.9,4856.8,17.64664193]
[1755892684615,1.715,4859.0,4857.4,1.239]
[1755892684818,0.4701,4858.8,4857.5,0.66]
[1755892685129,0.4701,4858.8,4856.8,16.86764193]
[1755892685130,1.715,4857.7,4856.5,3.57233246]
[1755892685318,1.715,4857.7,4856.5,0.02059096]
[1755892685519,3.864,4857.6,4857.5,0.0215]
[1755892685832,4.6048,4857.6,4857.5,0.20863705]
[1755892686033,4.6048,4857.6,4856.4,0.08766754]
[1755892686212,0.4501,4857.5,4856.4,0.08766754]
[1755892686408,0.2907,4856.5,4856.4,0.08766754]
[1755892686627,1.715,4857.5,4856.4,0.07591536]
[1755892686919,1.715,4857.5,4856.5,3.02059096]
[1755892687126,1.715,4857.5,4856.6,0.66]
[1755892687647,1.715,4857.5,4856.5,3.0]
[1755892687648,0.4501,4857.4,4856.5,0.66]
[1755892687801,0.2907,4856.7,4856.4,0.05532398]
[1755892688000,4.3641,4856.6,4856.4,0.05532398]
[1755892688213,2.0057,4856.5,4853.6,12.04125001]
[1755892688416,0.4501,4856.4,4853.8,0.02]
[1755892689110,0.4501,4856.4,4854.4,12.83592603]
[1755892689310,0.60791,4856.3,4855.8,0.02]
[1755892689506,0.2907,4855.9,4855.8,0.02]
[1755892689707,1.715,4856.5,4855.8,0.02]
[1755892689911,1.715,4856.5,4855.9,0.0205935]
[1755892690319,1.715,4856.5,4855.8,0.02]
[1755892690647,5.626,4856.5,4856.4,0.1032]
[1755892690959,1.715,4856.5,4856.4,3.7632]
[1755892691124,1.715,4856.5,4856.4,3.78379138]
[1755892691509,1.715,4856.5,4856.4,3.7632]